bitfinex/quotes_BTCUSD_20250615
["timestamp","ask_amount","ask_price","bid_price","bid_amount"]
[1750005433180,0.02036153,105620.0,105610.0,0.4393343]
[1750005433620,0.02982889,105620.0,105610.0,0.4393343]
[1750005434102,0.02036153,105620.0,105610.0,0.4393343]
[1750005434318,0.01089435,105620.0,105610.0,0.4393343]
[1750005434535,0.00114207,105620.0,105610.0,0.4393343]
[1750005434751,0.01060925,105620.0,105610.0,0.4393343]
[1750005435201,0.00114207,105620.0,105610.0,0.4393343]
[1750005436692,0.01060925,105620.0,105610.0,0.4393343]
[1750005436903,0.00114207,105620.0,105610.0,0.4393343]
[1750005437555,0.01060925,105620.0,105610.0,0.4393343]
[1750005437979,0.00114207,105620.0,105610.0,0.4393343]
[1750005440620,0.00114207,105620.0,105610.0,0.97872132]
[1750005440834,0.00114207,105620.0,105610.0,0.4393343]
[1750005441050,0.00114207,105620.0,105610.0,0.97872132]
[1750005441277,0.00114207,105620.0,105610.0,0.4393343]
[1750005441493,0.00114207,105620.0,105610.0,0.5951343]
[1750005441680,0.00114207,105620.0,105610.0,0.36206393]
[1750005441890,0.02954424,105620.0,105610.0,0.36206393]
[1750005442126,0.0200767,105620.0,105610.0,0.51794393]
[1750005442548,0.02954424,105620.0,105610.0,0.51794393]
[1750005443183,0.0200767,105620.0,105610.0,0.51794393]
[1750005443598,0.01060934,105620.0,105610.0,0.51794393]
[1750005444018,0.01060934,105620.0,105610.0,0.59340526]
[1750005444240,0.01060925,105620.0,105610.0,0.59340526]
[1750005446043,0.01060925,105620.0,105610.0,0.51794393]
[1750005446285,0.02954406,105620.0,105610.0,0.51786393]
[1750005446492,0.02007652,105620.0,105610.0,0.51786393]
[1750005446715,0.02893747,105620.0,105610.0,0.51786393]
[1750005446962,0.02007652,105620.0,105610.0,0.51786393]
[1750005447208,0.02954397,105620.0,105610.0,0.51786393]
[1750005447437,0.02007652,105620.0,105610.0,0.51786393]
[1750005447932,0.01060925,105620.0,105610.0,0.51786393]
[1750005448539,0.02007661,105620.0,105610.0,0.51786393]
[1750005448944,0.01060925,105620.0,105610.0,0.51786393]
[1750005449202,0.02007661,105620.0,105610.0,0.51786393]
[1750005449410,0.01060925,105620.0,105610.0,0.51786393]
[1750005449624,0.01060925,105620.0,105610.0,0.59331726]
[1750005450488,0.01060925,105620.0,105610.0,0.51786393]
[1750005451748,0.02007652,105620.0,105610.0,0.51786393]
[1750005451959,0.01060925,105620.0,105610.0,0.51786393]
[1750005452362,0.00114207,105620.0,105610.0,0.51786393]
[1750005452572,0.01060925,105620.0,105610.0,0.51786393]
[1750005452788,0.01060925,105620.0,105610.0,0.59331726]
[1750005453829,0.02007661,105620.0,105610.0,0.59331726]
[1750005454028,0.02007661,105620.0,105610.0,0.51786393]
[1750005454296,0.01060925,105620.0,105610.0,0.51786393]
[1750005454880,0.02007652,105620.0,105610.0,0.51786393]
[1750005455568,0.02954397,105620.0,105610.0,0.51786393]
[1750005455781,0.02007652,105620.0,105610.0,0.51786393]
[1750005456377,0.02954397,105620.0,105610.0,0.51786393]
[1750005456587,0.58786634,105620.0,105610.0,0.21031324]
[1750005456787,0.58786634,105620.0,105610.0,0.21978159]
[1750005456788,0.77722513,105620.0,105610.0,0.21978159]
[1750005457012,0.76775786,105620.0,105610.0,0.21978159]
[1750005457214,0.02007706,105620.0,105610.0,0.25325887]
[1750005457415,0.02954478,105620.0,105610.0,0.28525887]
[1750005457620,0.02954478,105620.0,105610.0,0.3135963]
[1750005457847,0.02954478,105620.0,105610.0,0.28525887]
[1750005458270,0.02007706,105620.0,105610.0,0.28525887]
[1750005458483,0.0200767,105620.0,105610.0,0.3135963]
[1750005459134,0.02954424,105620.0,105610.0,0.28525887]
[1750005459364,0.03901196,105620.0,105610.0,0.28525887]
[1750005459572,0.03901196,105620.0,105610.0,0.3135963]
[1750005459783,0.03901196,105620.0,105610.0,0.28525887]
[1750005460196,0.03901196,105620.0,105610.0,0.3135963]
[1750005460632,0.78989059,105620.0,105610.0,0.002]
[1750005460853,0.78042287,105620.0,105610.0,0.191376]
[1750005461068,0.78928342,105620.0,105610.0,0.20084471]
[1750005461285,0.78042287,105620.0,105610.0,0.20084471]
[1750005461505,0.76502287,105620.0,105610.0,0.21031333]
[1750005461723,0.75555506,105620.0,105610.0,0.20084471]
[1750005461951,0.77095506,105620.0,105610.0,0.20084471]
[1750005464323,0.77076569,105620.0,105610.0,0.20084471]
[1750005464570,0.77076569,105620.0,105610.0,0.21031333]
[1750005464782,0.91084569,105620.0,105610.0,0.21031333]
[1750005465330,0.91084569,105620.0,105610.0,0.20084471]
[1750005465542,0.92604569,105620.0,105610.0,0.002]
[1750005466610,0.73916569,105620.0,105610.0,0.20084471]
[1750005466826,0.89464569,105620.0,105610.0,0.21031324]
[1750005468481,0.73916569,105620.0,105610.0,0.21031324]
[1750005468693,0.89456569,105620.0,105610.0,0.21031324]
[1750005468869,0.89456569,105620.0,105610.0,0.21978168]
[1750005469076,0.89456569,105620.0,105610.0,0.21031324]
[1750005470222,0.90403332,105620.0,105610.0,0.21031324]
[1750005470463,0.74863332,105620.0,105610.0,0.21978168]
[1750005470677,0.90403332,105620.0,105610.0,0.22925003]
[1750005470903,0.90403332,105620.0,105610.0,0.21978168]
[1750005471316,0.90403332,105620.0,105610.0,0.21031324]
[1750005471528,0.89456569,105620.0,105610.0,0.20084471]
[1750005471744,0.89456569,105620.0,105610.0,0.21031333]
[1750005472186,0.90342582,105620.0,105610.0,0.21031333]
[1750005472399,0.89456569,105620.0,105610.0,0.21031333]
[1750005472607,0.90342578,105620.0,105610.0,0.21031333]
[1750005472819,0.90342576,105620.0,105610.0,0.21031333]
[1750005473229,0.89456569,105620.0,105610.0,0.21031333]
[1750005473457,0.89456569,105620.0,105610.0,0.21978186]
[1750005473875,0.90342575,105620.0,105610.0,0.21978186]
[1750005474082,0.89456569,105620.0,105610.0,0.21031333]
[1750005474310,0.90342575,105620.0,105610.0,0.21031333]
[1750005474776,0.88509779,105620.0,105610.0,0.21031333]
[1750005474981,0.89395781,105620.0,105610.0,0.21031333]
[1750005475194,0.89395783,105620.0,105610.0,0.21978186]
[1750005475399,0.89395785,105620.0,105610.0,0.21978186]
[1750005475611,0.88509779,105620.0,105610.0,0.23871865]
[1750005476441,0.88509779,105620.0,105610.0,0.2292503]
[1750005476646,0.88509779,105620.0,105610.0,0.21978186]
[1750005476851,0.89395779,105620.0,105610.0,0.21978186]
[1750005477052,0.88509779,105620.0,105610.0,0.21978186]
[1750005477285,0.89395781,105620.0,105610.0,0.21978186]
[1750005477486,0.88509779,105620.0,105610.0,0.21978186]
[1750005479160,0.72969779,105620.0,105610.0,0.21978186]
[1750005479367,0.88485779,105620.0,105610.0,0.21978186]
[1750005479573,0.88485779,105620.0,105610.0,0.21031333]
[1750005479776,0.88485779,105620.0,105610.0,0.21978186]
[1750005480198,0.34547077,105620.0,105610.0,0.2292503]
[1750005480410,0.88485779,105620.0,105610.0,0.28577743]
[1750005480622,0.88485779,105620.0,105610.0,0.27630908]
[1750005480847,0.88485779,105620.0,105610.0,0.2292503]
[1750005481058,0.95151011,105620.0,105610.0,0.2292503]
[1750005481271,0.95151011,105620.0,105610.0,0.23871865]
[1750005481482,0.79635011,105620.0,105610.0,0.23871865]
[1750005481704,0.96097783,105620.0,105610.0,0.23871865]
[1750005482651,0.79055439,105620.0,105610.0,0.26931811]
[1750005482909,0.01988724,105620.0,105610.0,0.31803052]
[1750005483115,0.18447469,105620.0,105610.0,0.31803052]
[1750005483542,0.79051403,105620.0,105610.0,0.31803052]
[1750005484046,0.79051394,105620.0,105610.0,0.31803052]
[1750005484433,0.79051394,105620.0,105610.0,0.26931811]
[1750005484898,0.80944929,105620.0,105610.0,0.26931811]
[1750005485111,0.64486157,105620.0,105610.0,0.26931811]
[1750005485348,0.79998148,105620.0,105610.0,0.26931811]
[1750005487296,0.64486148,105620.0,105610.0,0.26931811]
[1750005487501,0.19398214,105620.0,105610.0,0.26931811]
[1750005487735,0.0009527,105620.0,105610.0,0.98604752]
[1750005487971,0.0009527,105620.0,105610.0,1.08228928]
[1750005488219,0.0009527,105620.0,105610.0,1.11070133]
[1750005488673,0.0009527,105620.0,105610.0,0.50466199]
[1750005488908,0.0009527,105620.0,105610.0,1.11070133]
[1750005489159,0.0009527,105620.0,105610.0,0.50466199]
[1750005490970,0.01041988,105620.0,105610.0,0.40851277]
[1750005491183,0.0009527,105620.0,105610.0,0.40851277]
[1750005495236,0.0009527,105620.0,105610.0,0.94706606]
[1750005495450,0.0009527,105620.0,105610.0,1.10250606]
[1750005496771,0.0009527,105620.0,105610.0,1.1404282]
[1750005496973,0.0009527,105620.0,105610.0,0.60187491]
[1750005497185,0.0009527,105620.0,105610.0,0.69802413]
[1750005499723,0.0009527,105620.0,105610.0,1.23657742]
[1750005506772,0.0009527,105620.0,105610.0,0.69802413]
[1750005506991,0.0009527,105620.0,105610.0,1.23657742]
[1750005507980,0.75895748,105640.0,105630.0,0.21774033]
[1750005508192,0.74996492,105640.0,105630.0,0.26240227]
[1750005508622,0.75020492,105640.0,105630.0,0.26240227]
[1750005508868,0.94899397,105640.0,105630.0,0.24346943]
[1750005509118,0.02839966,105630.0,105620.0,0.23230154]
[1750005509338,0.58255286,105630.0,105620.0,0.3285433]
[1750005511087,0.58455286,105630.0,105620.0,0.3285433]
[1750005511958,0.56895286,105630.0,105620.0,0.3285433]
[1750005512171,0.55948613,105630.0,105620.0,0.3285433]
[1750005513469,0.55001958,105630.0,105620.0,0.38442204]
[1750005513680,0.0114662,105630.0,105620.0,0.41572204]
[1750005513890,0.0114662,105630.0,105620.0,0.3598433]
[1750005514312,0.02093258,105630.0,105620.0,0.3598433]
[1750005514740,0.03039913,105630.0,105620.0,0.3598433]
[1750005514949,0.63623452,105630.0,105620.0,0.3598433]
[1750005515381,0.64570125,105630.0,105620.0,0.3285433]
[1750005515847,0.80126125,105630.0,105620.0,0.3285433]
[1750005516488,0.80126116,105630.0,105620.0,0.3285433]
[1750005516698,0.79179452,105630.0,105620.0,0.3285433]
[1750005517542,0.79179452,105630.0,105620.0,0.3605433]
[1750005517774,0.63623452,105630.0,105620.0,0.3605433]
[1750005517986,0.79179452,105630.0,105620.0,0.3285433]
[1750005519164,0.78232797,105630.0,105620.0,0.3285433]
[1750005519377,0.79179452,105630.0,105620.0,0.3285433]
[1750005519973,0.79179452,105630.0,105620.0,0.35695535]
[1750005520221,0.79179452,105630.0,105620.0,0.3285433]
[1750005520437,0.79179443,105630.0,105620.0,0.3285433]
[1750005520858,0.78232788,105630.0,105620.0,0.39111546]
[1750005521100,0.78232788,105630.0,105620.0,0.42311546]
[1750005521310,0.78232788,105630.0,105620.0,0.45152751]
[1750005521519,0.78232788,105630.0,105620.0,0.42311546]
[1750005521700,0.78232788,105630.0,105620.0,0.45152751]
[1750005521914,0.79179434,105630.0,105620.0,0.45152751]
[1750005522168,0.78232788,105630.0,105620.0,0.45152751]
[1750005522591,0.17649249,105630.0,105620.0,0.45152751]
[1750005522824,0.76339539,105630.0,105620.0,0.45153596]
[1750005523044,0.76339539,105630.0,105620.0,0.3889638]
[1750005523718,0.15736,105630.0,105620.0,0.3889638]
[1750005523934,0.77266168,105630.0,105620.0,0.3889638]
[1750005524593,0.77262168,105630.0,105620.0,0.3889638]
[1750005525040,0.78208814,105630.0,105620.0,0.3889638]
[1750005525222,0.77262168,105630.0,105620.0,0.3889638]
[1750005525832,0.16678629,105630.0,105620.0,0.3889638]
[1750005526051,0.77262168,105630.0,105620.0,0.3889638]
[1750005527237,0.17625267,105630.0,105620.0,0.3889638]
[1750005527601,0.76315539,105630.0,105620.0,0.3889638]
[1750005528561,0.76315539,105630.0,105620.0,0.48511302]
[1750005528763,0.15732,105630.0,105620.0,0.48511302]
[1750005528918,0.76315539,105630.0,105620.0,0.48511302]
[1750005529330,0.77262168,105630.0,105620.0,0.48511302]
[1750005529849,0.16678629,105630.0,105620.0,0.3889638]
[1750005530049,0.77262168,105630.0,105620.0,0.3889638]
[1750005530409,0.76315539,105630.0,105620.0,0.3889638]
[1750005530616,0.77262168,105630.0,105620.0,0.3889638]
[1750005530824,0.76315539,105630.0,105620.0,0.3889638]
[1750005531300,0.76315539,105630.0,105620.0,0.48511302]
[1750005531503,0.002,105630.0,105620.0,0.48511302]
[1750005531704,0.15712,105630.0,105620.0,0.48511302]
[1750005532116,0.76295539,105630.0,105620.0,0.3889638]
[1750005532450,0.15712,105630.0,105620.0,0.3889638]
[1750005532659,0.002,105630.0,105620.0,0.3889638]
[1750005533492,0.002,105630.0,105620.0,0.99479919]
[1750005533884,0.002,105630.0,105620.0,0.3889638]
[1750005534092,0.62676814,105630.0,105620.0,0.3889638]
[1750005534318,0.62676814,105630.0,105620.0,0.3723638]
[1750005534491,0.62676814,105630.0,105620.0,0.3879638]
[1750005536789,0.63623478,105630.0,105620.0,0.3879638]
[1750005537414,0.63623478,105630.0,105620.0,0.21777857]
[1750005537415,0.82557492,105630.0,105620.0,0.21777857]
[1750005537617,0.66180169,105630.0,105620.0,0.25564873]
[1750005537817,0.64570169,105630.0,105620.0,0.22722823]
[1750005538643,0.83504183,105630.0,105620.0,0.21776096]
[1750005539103,0.64570169,105630.0,105620.0,0.22722823]
[1750005539295,0.03039939,105630.0,105620.0,0.25862823]
[1750005539498,0.63623478,105630.0,105620.0,0.25862823]
[1750005539703,0.62676823,105630.0,105620.0,0.25862823]
[1750005540283,0.16674629,105630.0,105620.0,0.3977388]
[1750005540766,0.17621275,105630.0,105620.0,0.3977388]
[1750005541188,0.79151478,105630.0,105620.0,0.30158958]
[1750005541398,0.8009816,105630.0,105620.0,0.30158958]
[1750005541604,0.79151478,105630.0,105620.0,0.30158958]
[1750005542506,0.78204814,105630.0,105620.0,0.30158958]
[1750005542763,0.77258168,105630.0,105620.0,0.30158958]
[1750005543199,0.0114662,105630.0,105620.0,0.3977388]
[1750005543830,0.02093249,105630.0,105620.0,0.3977388]
[1750005544695,0.02093249,105630.0,105620.0,0.30158958]
[1750005545549,0.03039904,105630.0,105620.0,0.30158958]
[1750005545769,0.63623443,105630.0,105620.0,0.30158958]
[1750005546657,0.64570116,105630.0,105620.0,0.30158958]
[1750005547543,0.64570107,105630.0,105620.0,0.30158958]
[1750005549301,0.65516789,105630.0,105620.0,0.30158958]
[1750005549533,0.64570107,105630.0,105620.0,0.30158958]
[1750005549759,0.65516789,105630.0,105620.0,0.30158958]
[1750005551409,0.6551686,105630.0,105620.0,0.30158958]
[1750005551881,0.64570169,105630.0,105620.0,0.30158958]
[1750005553877,0.83504245,105630.0,105620.0,0.24618164]
[1750005554095,0.61752271,105630.0,105620.0,0.2082936]
[1750005554304,0.59205589,105630.0,105620.0,0.19882597]
[1750005554528,0.74717589,105630.0,105620.0,0.20829378]
[1750005554747,0.73167589,105630.0,105620.0,0.20829378]
[1750005556063,0.73167589,105630.0,105620.0,0.2177615]
[1750005556343,0.35392705,105630.0,105620.0,0.2177615]
[1750005556569,0.95976244,105630.0,105620.0,0.2177615]
[1750005559695,0.35392705,105630.0,105620.0,0.2177615]
[1750005559903,0.97869608,105630.0,105620.0,0.23669631]
[1750005560135,0.37286069,105630.0,105620.0,0.23669631]
[1750005560551,0.37286069,105630.0,105620.0,0.22722895]
[1750005561624,0.37286069,105630.0,105620.0,0.23669631]
[1750005562264,0.37286069,105630.0,105620.0,0.22722895]
[1750005562479,0.37286069,105630.0,105620.0,0.23669631]
[1750005562688,0.17405355,105630.0,105620.0,0.26969631]
[1750005562899,0.17405355,105630.0,105620.0,0.26969568]
[1750005563116,0.36339369,105630.0,105620.0,0.26022841]
[1750005563348,0.37286069,105630.0,105620.0,0.25076105]
[1750005563772,0.37286069,105630.0,105620.0,0.26022841]
[1750005564756,0.17405355,105630.0,105620.0,0.26969568]
[1750005565410,0.01893355,105630.0,105620.0,0.26969568]
[1750005565643,0.01893302,105630.0,105620.0,0.26969568]
[1750005565883,0.02839975,105630.0,105620.0,0.26969568]
[1750005566148,0.01893302,105630.0,105620.0,0.26969568]
[1750005566812,0.02839984,105630.0,105620.0,0.26969568]
[1750005567232,0.01893302,105630.0,105620.0,0.26969568]
[1750005567462,0.01893293,105630.0,105620.0,0.3658449]
[1750005567885,0.00946638,105630.0,105620.0,0.97168029]
[1750005568087,0.01893293,105630.0,105620.0,0.97168029]
[1750005568297,0.00946629,105630.0,105620.0,0.98117029]
[1750005568511,0.01893293,105630.0,105620.0,0.27918568]
[1750005568720,0.01893293,105630.0,105620.0,0.88502107]
[1750005569158,0.01893267,105630.0,105620.0,0.88502107]
[1750005569602,0.7288841,105640.0,105630.0,0.24964051]
[1750005569820,1.34358202,105640.0,105630.0,0.24964051]
[1750005570235,1.33471949,105640.0,105630.0,0.24964051]
[1750005570862,1.34658202,105640.0,105630.0,0.25064051]
[1750005571075,1.34658214,105640.0,105630.0,0.24117387]
[1750005571288,0.74074675,105640.0,105630.0,0.22457387]
[1750005571492,1.34658215,105640.0,105630.0,0.22457387]
[1750005571701,1.34658214,105640.0,105630.0,0.22457387]
[1750005571911,1.35058211,105640.0,105630.0,0.22457387]
[1750005572127,1.34171949,105640.0,105630.0,0.22457387]
[1750005572340,1.3316507,105640.0,105630.0,0.010467]
[1750005572555,1.33165067,105640.0,105630.0,0.010467]
[1750005572784,1.33165071,105640.0,105630.0,0.010467]
[1750005572999,1.33165061,105640.0,105630.0,0.001]
[1750005573208,1.32278808,105640.0,105630.0,0.001]
[1750005573437,1.33165052,105640.0,105630.0,0.001]
[1750005573658,6.16950874,105640.0,105630.0,0.001]
[1750005573842,6.16950853,105640.0,105630.0,0.001]
[1750005574093,6.16729283,105640.0,105630.0,0.001]
[1750005574315,6.17615488,105640.0,105630.0,0.001]
[1750005574532,6.16729285,105640.0,105630.0,0.001]
[1750005574748,6.1606463,105640.0,105630.0,0.001]
[1750005574956,6.17615487,105640.0,105630.0,0.001]
[1750005575176,6.1761549,105640.0,105630.0,0.001]
[1750005575395,6.16729285,105640.0,105630.0,0.001]
[1750005575625,6.16950831,105640.0,105630.0,0.001]
[1750005575840,6.17615477,105640.0,105630.0,0.001]
[1750005576081,6.17615456,105640.0,105630.0,0.001]
[1750005576299,6.16950811,105640.0,105630.0,0.001]
[1750005576510,6.1606463,105640.0,105630.0,0.001]
[1750005576753,6.16729268,105640.0,105630.0,0.001]
[1750005576957,6.1695082,105640.0,105630.0,0.001]
[1750005577174,6.16729273,105640.0,105630.0,0.001]
[1750005577396,6.17615464,105640.0,105630.0,0.001]
[1750005577575,6.16729272,105640.0,105630.0,0.001]
[1750005577812,6.17615461,105640.0,105630.0,0.001]
[1750005578030,6.16729272,105640.0,105630.0,0.001]
[1750005578223,6.16950808,105640.0,105630.0,0.001]
[1750005578463,6.16729267,105640.0,105630.0,0.001]
[1750005578672,6.17615447,105640.0,105630.0,0.001]
[1750005578878,6.1606463,105640.0,105630.0,0.001]
[1750005579315,6.17615449,105640.0,105630.0,0.001]
[1750005579527,6.16950812,105640.0,105630.0,0.001]
[1750005579748,6.17615451,105640.0,105630.0,0.001]
[1750005579962,6.17615452,105640.0,105630.0,0.001]
[1750005580433,6.17615449,105640.0,105630.0,0.001]
[1750005580647,6.1606463,105640.0,105630.0,0.001]
[1750005580862,6.17615449,105640.0,105630.0,0.001]
[1750005581122,6.16950812,105640.0,105630.0,0.001]
[1750005581541,6.17615448,105640.0,105630.0,0.001]
[1750005581774,6.16729266,105640.0,105630.0,0.001]
[1750005581989,6.16950811,105640.0,105630.0,0.001]
[1750005582200,6.16729266,105640.0,105630.0,0.001]
[1750005582415,6.17615447,105640.0,105630.0,0.001]
[1750005582839,6.16729266,105640.0,105630.0,0.001]
[1750005583067,6.16950811,105640.0,105630.0,0.001]
[1750005583277,6.1606463,105640.0,105630.0,0.001]
[1750005583500,6.17615447,105640.0,105630.0,0.001]
[1750005583930,6.16729266,105640.0,105630.0,0.001]
[1750005584116,6.17615447,105640.0,105630.0,0.001]
[1750005584365,6.16729266,105640.0,105630.0,0.001]
[1750005584601,6.12032525,105640.0,105630.0,0.001]
[1750005584820,6.11146344,105640.0,105630.0,0.001]
[1750005585051,6.12032526,105640.0,105630.0,0.001]
[1750005585266,6.11146346,105640.0,105630.0,0.001]
[1750005585449,6.1203253,105640.0,105630.0,0.001]
[1750005585713,6.11367892,105640.0,105630.0,0.001]
[1750005585962,6.22677744,105640.0,105630.0,0.001]
[1750005586173,6.83261283,105640.0,105630.0,0.001]
[1750005586396,6.26409653,105640.0,105630.0,0.001]
[1750005586609,6.26409651,105640.0,105630.0,0.001]
[1750005586806,6.2640965,105640.0,105630.0,0.001]
[1750005587073,6.2552351,105640.0,105630.0,0.001]
[1750005587295,6.26409649,105640.0,105630.0,0.001]
[1750005587513,6.2552351,105640.0,105630.0,0.001]
[1750005588018,6.24858906,105640.0,105630.0,0.001]
[1750005588237,6.2640966,105640.0,105630.0,0.001]
[1750005588485,6.26409673,105640.0,105630.0,0.001]
[1750005588724,6.24858906,105640.0,105630.0,0.001]
[1750005589181,6.25745056,105640.0,105630.0,0.001]
[1750005589430,6.24858906,105640.0,105630.0,0.001]
[1750005589662,6.2574506,105640.0,105630.0,0.001]
[1750005589865,6.25523521,105640.0,105630.0,0.001]
[1750005590102,6.26409675,105640.0,105630.0,0.001]
[1750005590297,6.2640968,105640.0,105630.0,0.001]
[1750005590588,6.26409693,105640.0,105630.0,0.001]
[1750005590818,6.25523533,105640.0,105630.0,0.001]
[1750005591063,6.26409704,105640.0,105630.0,0.001]
[1750005591308,6.86993222,105640.0,105630.0,0.001]
[1750005591534,6.88941674,105640.0,105630.0,0.001]
[1750005591792,6.8827707,105640.0,105630.0,0.001]
[1750005592281,6.8915953,105640.0,105630.0,0.001]
[1750005592582,6.8827707,105640.0,105630.0,0.001]
[1750005592846,6.89159529,105640.0,105630.0,0.001]
[1750005593088,6.88938912,105640.0,105630.0,0.001]
[1750005593355,6.89159524,105640.0,105630.0,0.001]
[1750005593574,6.8827707,105640.0,105630.0,0.001]
[1750005593816,6.89159525,105640.0,105630.0,0.001]
[1750005594024,6.89821367,105640.0,105630.0,0.001]
[1750005594237,6.89821366,105640.0,105630.0,0.001]
[1750005594440,6.89821363,105640.0,105630.0,0.001]
[1750005594680,6.89159525,105640.0,105630.0,0.001]
[1750005594925,6.88938907,105640.0,105630.0,0.001]
[1750005595413,6.89821357,105640.0,105630.0,0.001]
[1750005595638,6.8915952,105640.0,105630.0,0.001]
[1750005595864,6.8982136,105640.0,105630.0,0.001]
[1750005596321,6.89821359,105640.0,105630.0,0.001]
[1750005596548,6.89159521,105640.0,105630.0,0.001]
[1750005596781,6.88938908,105640.0,105630.0,0.001]
[1750005597006,6.89821358,105640.0,105630.0,0.001]
[1750005597253,6.87252295,105640.0,105630.0,0.001]
[1750005597489,6.87914128,105640.0,105630.0,0.001]
[1750005597728,6.87252294,105640.0,105630.0,0.001]
[1750005597963,6.87031683,105640.0,105630.0,0.001]
[1750005598212,6.96867217,105640.0,105630.0,0.001]
[1750005598432,6.96867217,105640.0,105600.0,0.0808]
[1750005598433,0.54831297,105610.0,105600.0,0.0808]
[1750005598644,0.54831297,105610.0,105600.0,0.05]
[1750005598645,1.34958836,105610.0,105600.0,0.05]
[1750005598873,6.05959736,105610.0,105600.0,0.0808]
[1750005600061,6.05959736,105610.0,105600.0,0.0828]
[1750005600532,6.06624205,105610.0,105600.0,0.0828]
[1750005600765,0.56442651,105610.0,105600.0,0.3297009]
[1750005601007,0.51405697,105610.0,105600.0,0.3297009]
[1750005601253,0.72237048,105610.0,105600.0,0.33917005]
[1750005601506,0.71290213,105610.0,105600.0,0.28166344]
[1750005601761,0.71290213,105610.0,105600.0,0.29113286]
[1750005601982,0.70343351,105610.0,105600.0,0.29113286]
[1750005602138,1.3092689,105610.0,105600.0,0.29113286]
[1750005602662,1.3092689,105610.0,105600.0,0.30060219]
[1750005602874,1.3092689,105610.0,105600.0,0.29113286]
[1750005602875,0.70343351,105610.0,105600.0,0.29113286]
[1750005603089,0.70343351,105610.0,105600.0,0.31007143]
[1750005603749,0.70343351,105610.0,105600.0,0.29113286]
[1750005604293,0.70343351,105610.0,105600.0,0.30060219]
[1750005605775,0.54831351,105610.0,105600.0,0.30060219]
[1750005605989,0.51405652,105610.0,105600.0,0.3915886]
[1750005606194,0.52352505,105610.0,105600.0,0.3915886]
[1750005606823,0.35893652,105610.0,105600.0,0.33408134]
[1750005607027,0.52352505,105610.0,105600.0,0.33408134]
[1750005607210,0.51405652,105610.0,105600.0,0.33408134]
[1750005607453,0.52352505,105610.0,105600.0,0.33408134]
[1750005607663,0.00946817,105610.0,105600.0,0.4303231]
[1750005607871,0.17405661,105610.0,105600.0,0.4303231]
[1750005609364,0.16458817,105610.0,105600.0,0.4303231]
[1750005609577,0.17405652,105610.0,105600.0,0.4303231]
[1750005610017,0.18352496,105610.0,105600.0,0.4303231]
[1750005610922,0.02840496,105610.0,105600.0,0.4493031]
[1750005611195,0.18352496,105610.0,105600.0,0.4303231]
[1750005612959,0.22730234,105620.0,105600.0,0.40191484]
[1750005613167,0.04739445,105620.0,105610.0,0.27409061]
[1750005613377,0.18352199,105620.0,105610.0,0.27409061]
[1750005614289,0.1939898,105620.0,105610.0,0.26462253]
[1750005614506,0.0388698,105620.0,105610.0,0.26462262]
[1750005614711,0.38234787,105620.0,105610.0,0.25515418]
[1750005614931,0.38334868,105620.0,105610.0,0.25515418]
[1750005615144,0.18452271,105620.0,105610.0,0.30928635]
[1750005615350,0.18452271,105620.0,105610.0,0.31028635]
[1750005615764,0.18452271,105620.0,105610.0,0.31975452]
[1750005616651,0.02940199,105620.0,105610.0,0.31975452]
[1750005616854,0.1845219,105620.0,105610.0,0.31975452]
[1750005617292,0.17505445,105620.0,105610.0,0.31975452]
[1750005617767,0.01993445,105620.0,105610.0,0.31975452]
[1750005617973,0.001,105620.0,105610.0,0.95473688]
[1750005618842,0.001,105620.0,105610.0,0.91954132]
[1750005619056,0.001,105620.0,105610.0,0.38080072]
[1750005619728,0.001,105620.0,105610.0,0.40916979]
[1750005619936,0.001,105620.0,105610.0,0.94791039]
[1750005621235,0.001,105620.0,105610.0,0.40916979]
[1750005622286,0.001,105620.0,105610.0,1.04405961]
[1750005622691,0.001,105620.0,105610.0,1.01569054]
[1750005623891,0.001,105620.0,105610.0,1.04405961]
[1750005624109,0.001,105620.0,105610.0,0.94791039]
[1750005624850,0.001,105620.0,105610.0,0.91954132]
[1750005625067,0.001,105620.0,105610.0,0.98662363]
[1750005633502,0.83405096,105620.0,105610.0,0.33785518]
[1750005633737,0.94236573,105620.0,105610.0,0.001]
[1750005634012,6.02083473,105620.0,105610.0,0.001]
[1750005636976,5.95384987,105620.0,105610.0,0.001]
[1750005637452,5.66354159,105620.0,105610.0,0.001]
[1750005637668,5.85289966,105620.0,105610.0,0.001]
[1750005638134,5.31406161,105620.0,105610.0,0.001]
[1750005638350,5.85289966,105620.0,105610.0,0.001]
[1750005639677,6.04829966,105620.0,105610.0,0.001]
[1750005639911,6.04829966,105620.0,105610.0,0.190376]
[1750005640149,6.04829966,105620.0,105610.0,0.1998448]
[1750005640366,6.04829966,105620.0,105610.0,0.001]
[1750005640602,6.03229966,105620.0,105610.0,0.190376]
[1750005641315,6.03229966,105620.0,105610.0,0.20931351]
[1750005641541,6.03229966,105620.0,105610.0,0.21878213]
[1750005642017,6.03229966,105620.0,105610.0,0.001]
[1750005642257,6.03229966,105620.0,105610.0,0.20931351]
[1750005642521,6.03229966,105620.0,105610.0,0.1998448]
[1750005642785,6.03229966,105620.0,105610.0,0.20931351]
[1750005643001,6.03229966,105620.0,105610.0,0.1998448]
[1750005643286,5.82743203,105620.0,105610.0,0.1998448]
[1750005643574,1.30719066,105620.0,105610.0,0.21878186]
[1750005643792,1.30719066,105620.0,105610.0,0.20931342]
[1750005643977,1.29772303,105620.0,105610.0,0.1998448]
[1750005644206,1.29205612,105620.0,105610.0,0.1998448]
[1750005644431,1.29205612,105620.0,105610.0,0.20931351]
[1750005644700,0.02846,105620.0,105610.0,0.38280418]
[1750005644977,0.0066422,105630.0,105620.0,0.26450154]
[1750005645247,0.0066422,105630.0,105620.0,0.80333959]
[1750005645483,0.0066422,105630.0,105620.0,0.3206218]
[1750005645736,0.0066422,105630.0,105620.0,0.85945985]
[1750005646194,0.0066422,105630.0,105620.0,0.95570161]
[1750005647302,0.0066422,105630.0,105620.0,0.41686356]
[1750005647527,0.0066422,105630.0,105620.0,0.3607433]
[1750005648045,0.0086422,105630.0,105620.0,0.3687433]
[1750005651634,0.0086422,105630.0,105620.0,0.44433266]
[1750005652087,0.0086422,105630.0,105620.0,0.47270173]
[1750005652306,0.0086422,105630.0,105620.0,0.91012042]
[1750005652529,0.0086422,105630.0,105620.0,1.44895847]
[1750005652750,0.0086422,105630.0,105620.0,1.44595847]
[1750005652971,0.0076422,105630.0,105620.0,1.44595847]
[1750005653663,0.0076422,105630.0,105620.0,0.90712042]
[1750005653898,0.0086422,105630.0,105620.0,1.37536911]
[1750005654120,0.0076422,105630.0,105620.0,1.37036911]
[1750005654341,0.0066422,105630.0,105620.0,1.36536911]
[1750005654558,0.0086422,105630.0,105620.0,0.83953106]
[1750005654775,0.0086422,105630.0,105620.0,0.89641427]